[Event "December 12 Late 2023"]
[Site "https://www.chess.com"]
[Date "2023.12.12"]
[Round "4"]
[White "Cieslak, Patryk"]
[Black "Sherman, Raem"]
[Result "0-1"]
[Board "57"]
[TimeControl "180+1"]
[WhiteFideId "21078882"]
[BlackFideId "2822288"]
[WhiteElo "2705"]
[BlackElo "2522"]
[WhiteTeam "POL"]
[BlackTeam "ISR"]
[WhiteClock "0:00:02"]
[BlackClock "0:00:39"]

1. Nf3 {[%clk 0:03:00]}  d5 {[%clk 0:02:53]} 2. e3 {[%clk 0:03:00]}  Nf6 {[%clk 0:02:49]} 3. b3 {[%clk 0:03:00]}  c5 {[%clk 0:02:48]} 4. Bb2 {[%clk 0:03:00]}  g6 {[%clk 0:02:47]} 5. c4 {[%clk 0:02:59]}  dxc4 {[%clk 0:02:47]} 6. Bxc4 {[%clk 0:02:59]}  Bg7 {[%clk 0:02:47]} 7. O-O {[%clk 0:03:00]}  O-O {[%clk 0:02:47]} 8. Nc3 {[%clk 0:03:00]}  a6 {[%clk 0:02:46]} 9. Be2 {[%clk 0:02:54]}  b5 {[%clk 0:02:46]} 10. a4 {[%clk 0:02:54]}  b4 {[%clk 0:02:45]} 11. Nb1 {[%clk 0:02:55]}  Bb7 {[%clk 0:02:44]} 12. d3 {[%clk 0:02:55]}  Nbd7 {[%clk 0:02:43]} 13. Nbd2 {[%clk 0:02:54]}  Nd5 {[%clk 0:02:38]} 14. Qc2 {[%clk 0:02:45]}  Bxb2 {[%clk 0:02:36]} 15. Qxb2 {[%clk 0:02:46]}  Nc3 {[%clk 0:02:37]} 16. Nb1 {[%clk 0:02:45]}  Nxe2+ {[%clk 0:02:34]} 17. Qxe2 {[%clk 0:02:46]}  Bxf3 {[%clk 0:02:33]} 18. gxf3 {[%clk 0:02:42]}  Ne5 {[%clk 0:02:31]} 19. Rd1 {[%clk 0:02:43]}  Qd5 {[%clk 0:02:28]} 20. Nd2 {[%clk 0:01:52]}  Rad8 {[%clk 0:02:24]} 21. f4 {[%clk 0:01:35]}  Nxd3 {[%clk 0:02:18]} 22. Nc4 {[%clk 0:01:27]}  Qe4 {[%clk 0:02:11]} 23. f3 {[%clk 0:00:42]}  Nxf4 {[%clk 0:02:04]} 24. Qf1 {[%clk 0:00:39]}  Qc2 {[%clk 0:01:52]} 25. exf4 {[%clk 0:00:34]}  Qxb3 {[%clk 0:01:51]} 26. Ne5 {[%clk 0:00:30]}  Qe3+ {[%clk 0:01:49]} 27. Qf2 {[%clk 0:00:22]}  Qxf4 {[%clk 0:01:50]} 28. Nd3 {[%clk 0:00:20]}  Qg5+ {[%clk 0:01:45]} 29. Kh1 {[%clk 0:00:20]}  Rd5 {[%clk 0:01:38]} 30. Nb2 {[%clk 0:00:04]}  Rfd8 {[%clk 0:01:36]} 31. Qe2 {[%clk 0:00:04]}  Qf4 {[%clk 0:01:26]} 32. Rxd5 {[%clk 0:00:03]}  Rxd5 {[%clk 0:01:26]} 33. Nc4 {[%clk 0:00:02]}  Rd4 {[%clk 0:01:22]} 34. Ne3 {[%clk 0:00:03]}  b3 {[%clk 0:01:18]} 35. Ng2 {[%clk 0:00:03]}  Qd6 {[%clk 0:01:18]} 36. Qe1 {[%clk 0:00:01]}  c4 {[%clk 0:01:14]} 37. Rb1 {[%clk 0:00:02]}  Rd3 {[%clk 0:01:06]} 38. f4 {[%clk 0:00:02]}  Rd2 {[%clk 0:01:03]} 39. h4 {[%clk 0:00:01]}  Qd5 {[%clk 0:01:02]} 40. Qf1 {[%clk 0:00:01]}  Qe4 {[%clk 0:00:59]} 41. Re1 {[%clk 0:00:01]}  Qf5 {[%clk 0:00:55]} 42. Ne3 {[%clk 0:00:01]}  Qe4+ {[%clk 0:00:50]} 43. Ng2 {[%clk 0:00:01]}  Qc6 {[%clk 0:00:49]} 44. f5 {[%clk 0:00:02]}  b2 {[%clk 0:00:48]} 45. fxg6 {[%clk 0:00:01]}  hxg6 {[%clk 0:00:46]} 46. h5 {[%clk 0:00:01]}  c3 {[%clk 0:00:41]} 47. hxg6 {[%clk 0:00:02]}  Qxg6 {[%clk 0:00:41]} 48. Nf4 {[%clk 0:00:01]}  Qh6+ {[%clk 0:00:40]} 49. Kg1 {[%clk 0:00:01]}  Qg5+ {[%clk 0:00:39]} 50. Kh1 {[%clk 0:00:01]}  Qh4+ {[%clk 0:00:38]} 51. Kg1 {[%clk 0:00:02]}  Qg3+ {[%clk 0:00:38]} 52. Ng2 {[%clk 0:00:02]}  Qxg2+ {[%clk 0:00:37]} 53. Qxg2+ {[%clk 0:00:02]}  Rxg2+ {[%clk 0:00:38]} 54. Kxg2 {[%clk 0:00:02]}  c2 {[%clk 0:00:39]} 55. Re2 {[%clk 0:00:03]}  b1=Q {[%clk 0:00:39]} 56. Rf2 {[%clk 0:00:04]}  c1=Q {[%clk 0:00:39]} 57. Rf3 {[%clk 0:00:02]}  Qg1+ {[%clk 0:00:39]} 58. Kh3 {[%clk 0:00:02]}  Qh7# {[%clk 0:00:39]} 0-1

[Event "December 12 Late 2023"]
[Site "https://www.chess.com"]
[Date "2023.12.12"]
[Round "4"]
[White "Rosen, Eric"]
[Black "Ismayil, Malak"]
[Result "1-0"]
[Board "58"]
[TimeControl "180+1"]
[WhiteFideId "2032562"]
[BlackFideId "13412604"]
[WhiteElo "2690"]
[BlackElo "2522"]
[WhiteTeam "USA"]
[BlackTeam "AZE"]
[WhiteClock "0:00:07"]
[BlackClock "0:00:00"]

1. e4 {[%clk 0:03:00]}  e5 {[%clk 0:02:59]} 2. Nf3 {[%clk 0:03:00]}  Nc6 {[%clk 0:02:57]} 3. Nc3 {[%clk 0:03:01]}  Nf6 {[%clk 0:02:56]} 4. d4 {[%clk 0:03:01]}  exd4 {[%clk 0:02:51]} 5. Nxd4 {[%clk 0:03:02]}  Bc5 {[%clk 0:02:51]} 6. Be3 {[%clk 0:02:57]}  Bb4 {[%clk 0:02:15]} 7. Nxc6 {[%clk 0:02:17]}  bxc6 {[%clk 0:02:16]} 8. Bd3 {[%clk 0:01:39]}  d5 {[%clk 0:01:57]} 9. exd5 {[%clk 0:01:39]}  cxd5 {[%clk 0:01:53]} 10. O-O {[%clk 0:01:35]}  O-O {[%clk 0:01:51]} 11. Bd4 {[%clk 0:01:29]}  c6 {[%clk 0:01:08]} 12. Qf3 {[%clk 0:01:21]}  Bd6 {[%clk 0:01:04]} 13. h3 {[%clk 0:01:17]}  Be6 {[%clk 0:00:50]} 14. Na4 {[%clk 0:00:57]}  Nd7 {[%clk 0:00:41]} 15. b3 {[%clk 0:00:39]}  c5 {[%clk 0:00:27]} 16. Bb2 {[%clk 0:00:40]}  Rc8 {[%clk 0:00:20]} 17. Rad1 {[%clk 0:00:38]}  Qg5 {[%clk 0:00:15]} 18. Bc1 {[%clk 0:00:35]}  Qf6 {[%clk 0:00:14]} 19. Qxf6 {[%clk 0:00:28]}  Nxf6 {[%clk 0:00:15]} 20. Rfe1 {[%clk 0:00:26]}  Rfd8 {[%clk 0:00:14]} 21. Ba6 {[%clk 0:00:21]}  Rc6 {[%clk 0:00:12]} 22. Bb5 {[%clk 0:00:21]}  Rc7 {[%clk 0:00:13]} 23. Bd2 {[%clk 0:00:21]}  Ne4 {[%clk 0:00:12]} 24. Ba5 {[%clk 0:00:21]}  Rb8 {[%clk 0:00:06]} 25. Bxc7 {[%clk 0:00:16]}  Bxc7 {[%clk 0:00:07]} 26. Bd3 {[%clk 0:00:16]}  Ba5 {[%clk 0:00:05]} 27. Bxe4 {[%clk 0:00:11]}  Bxe1 {[%clk 0:00:04]} 28. Rxe1 {[%clk 0:00:10]}  dxe4 {[%clk 0:00:05]} 29. Nxc5 {[%clk 0:00:10]}  Rc8 {[%clk 0:00:03]} 30. Nxe6 {[%clk 0:00:10]}  fxe6 {[%clk 0:00:04]} 31. c4 {[%clk 0:00:11]}  Rd8 {[%clk 0:00:04]} 32. Rxe4 {[%clk 0:00:11]}  Rd1+ {[%clk 0:00:04]} 33. Kh2 {[%clk 0:00:11]}  Rd2 {[%clk 0:00:05]} 34. Rxe6 {[%clk 0:00:11]}  Rxa2 {[%clk 0:00:05]} 35. Re7 {[%clk 0:00:09]}  Rb2 {[%clk 0:00:03]} 36. Rb7 {[%clk 0:00:08]}  a5 {[%clk 0:00:03]} 37. Ra7 {[%clk 0:00:06]}  Rxb3 {[%clk 0:00:03]} 38. Rxa5 {[%clk 0:00:07]}  Rc3 {[%clk 0:00:04]} 39. Rc5 {[%clk 0:00:06]}  h5 {[%clk 0:00:04]} 40. h4 {[%clk 0:00:06]}  Kf7 {[%clk 0:00:03]} 41. Rc6 {[%clk 0:00:06]}  Rc2 {[%clk 0:00:02]} 42. f3 {[%clk 0:00:07]}  Rc3 {[%clk 0:00:02]} 43. Kg3 {[%clk 0:00:07]}  Kg8 {[%clk 0:00:03]} 44. Kf4 {[%clk 0:00:07]}  Kh7 {[%clk 0:00:04]} 45. Rc5 {[%clk 0:00:07]}  Kh6 {[%clk 0:00:03]} 46. Rc6+ {[%clk 0:00:06]}  g6 {[%clk 0:00:04]} 47. Kg3 {[%clk 0:00:06]}  Rc2 {[%clk 0:00:05]} 48. Rc7 {[%clk 0:00:07]}  Rc3 {[%clk 0:00:04]} 49. c5 {[%clk 0:00:07]}  Rc4 {[%clk 0:00:04]} 50. Rc8 {[%clk 0:00:07]}  Rc3 {[%clk 0:00:03]} 51. c6 {[%clk 0:00:07]}  g5 {[%clk 0:00:03]} 52. hxg5+ {[%clk 0:00:07]}  Kxg5 {[%clk 0:00:04]} 53. c7 {[%clk 0:00:07]}  h4+ {[%clk 0:00:00]} 54. Kh2 {[%clk 0:00:07]} 1-0

[Event "December 12 Late 2023"]
[Site "https://www.chess.com"]
[Date "2023.12.12"]
[Round "4"]
[White "Krallis, Christos"]
[Black "Tapie Amione, Pablo Adib"]
[Result "1-0"]
[Board "60"]
[TimeControl "180+1"]
[WhiteFideId "4298896"]
[BlackFideId "5107180"]
[WhiteElo "2671"]
[BlackElo "2520"]
[WhiteTeam "GRE"]
[BlackTeam "MEX"]
[WhiteClock "0:00:08"]
[BlackClock "0:00:02"]

1. Nc3 {[%clk 0:03:00]}  d5 {[%clk 0:02:58]} 2. Nf3 {[%clk 0:02:59]}  Nf6 {[%clk 0:02:55]} 3. e3 {[%clk 0:02:56]}  g6 {[%clk 0:02:46]} 4. Be2 {[%clk 0:02:37]}  a6 {[%clk 0:02:39]} 5. O-O {[%clk 0:02:35]}  c5 {[%clk 0:02:37]} 6. b3 {[%clk 0:02:32]}  Bg7 {[%clk 0:02:31]} 7. Bb2 {[%clk 0:02:32]}  O-O {[%clk 0:02:31]} 8. d4 {[%clk 0:02:30]}  cxd4 {[%clk 0:02:31]} 9. exd4 {[%clk 0:02:29]}  Ne4 {[%clk 0:02:27]} 10. Nxe4 {[%clk 0:02:15]}  dxe4 {[%clk 0:02:27]} 11. Ne5 {[%clk 0:02:14]}  Nd7 {[%clk 0:02:24]} 12. Nxd7 {[%clk 0:02:11]}  Bxd7 {[%clk 0:02:25]} 13. c4 {[%clk 0:02:11]}  Rc8 {[%clk 0:02:17]} 14. Qd2 {[%clk 0:02:04]}  b5 {[%clk 0:02:15]} 15. d5 {[%clk 0:02:04]}  Bxb2 {[%clk 0:02:01]} 16. Qxb2 {[%clk 0:02:05]}  bxc4 {[%clk 0:02:01]} 17. bxc4 {[%clk 0:02:05]}  e6 {[%clk 0:02:01]} 18. Rfd1 {[%clk 0:01:55]}  Qg5 {[%clk 0:01:50]} 19. Qb6 {[%clk 0:01:37]}  Qe5 {[%clk 0:01:30]} 20. Qxa6 {[%clk 0:01:28]}  exd5 {[%clk 0:01:31]} 21. cxd5 {[%clk 0:01:29]}  Rc2 {[%clk 0:01:31]} 22. Rac1 {[%clk 0:01:03]}  Rxc1 {[%clk 0:01:24]} 23. Rxc1 {[%clk 0:01:03]}  Qxd5 {[%clk 0:01:24]} 24. Rd1 {[%clk 0:01:01]}  Qf5 {[%clk 0:01:14]} 25. h3 {[%clk 0:00:53]}  Be6 {[%clk 0:01:12]} 26. Bg4 {[%clk 0:00:50]}  Qe5 {[%clk 0:01:03]} 27. Bxe6 {[%clk 0:00:46]}  fxe6 {[%clk 0:01:04]} 28. Qd6 {[%clk 0:00:46]}  Qf5 {[%clk 0:00:54]} 29. Rd2 {[%clk 0:00:44]}  Rf7 {[%clk 0:00:51]} 30. Rb2 {[%clk 0:00:41]}  Kg7 {[%clk 0:00:51]} 31. a4 {[%clk 0:00:37]}  e5 {[%clk 0:00:41]} 32. a5 {[%clk 0:00:33]}  Rd7 {[%clk 0:00:42]} 33. Qa3 {[%clk 0:00:24]}  Rd1+ {[%clk 0:00:41]} 34. Kh2 {[%clk 0:00:24]}  Qf4+ {[%clk 0:00:37]} 35. g3 {[%clk 0:00:23]}  Qf3 {[%clk 0:00:09]} 36. Qxf3 {[%clk 0:00:17]}  exf3 {[%clk 0:00:10]} 37. Ra2 {[%clk 0:00:14]}  e4 {[%clk 0:00:04]} 38. a6 {[%clk 0:00:14]}  e3 {[%clk 0:00:05]} 39. fxe3 {[%clk 0:00:11]}  Re1 {[%clk 0:00:05]} 40. Rf2 {[%clk 0:00:06]}  Rxe3 {[%clk 0:00:04]} 41. Kg1 {[%clk 0:00:07]}  Ra3 {[%clk 0:00:05]} 42. g4 {[%clk 0:00:05]}  Kf6 {[%clk 0:00:05]} 43. Kh2 {[%clk 0:00:03]}  Ke5 {[%clk 0:00:06]} 44. Kg3 {[%clk 0:00:03]}  Ke4 {[%clk 0:00:06]} 45. a7 {[%clk 0:00:03]}  Rxa7 {[%clk 0:00:06]} 46. Rxf3 {[%clk 0:00:04]}  Re7 {[%clk 0:00:06]} 47. Rf1 {[%clk 0:00:04]}  Kd5 {[%clk 0:00:04]} 48. Kh4 {[%clk 0:00:04]}  Re5 {[%clk 0:00:03]} 49. Rd1+ {[%clk 0:00:03]}  Ke6 {[%clk 0:00:04]} 50. Ra1 {[%clk 0:00:04]}  Kf7 {[%clk 0:00:04]} 51. Ra7+ {[%clk 0:00:04]}  Kg8 {[%clk 0:00:04]} 52. Rb7 {[%clk 0:00:04]}  Rd5 {[%clk 0:00:04]} 53. Rc7 {[%clk 0:00:04]}  Re5 {[%clk 0:00:05]} 54. Kg3 {[%clk 0:00:05]}  Rd5 {[%clk 0:00:06]} 55. Kf4 {[%clk 0:00:05]}  Rb5 {[%clk 0:00:06]} 56. h4 {[%clk 0:00:06]}  Ra5 {[%clk 0:00:06]} 57. Rd7 {[%clk 0:00:05]}  Rb5 {[%clk 0:00:07]} 58. Re7 {[%clk 0:00:05]}  Rc5 {[%clk 0:00:07]} 59. Re5 {[%clk 0:00:06]}  Rc6 {[%clk 0:00:04]} 60. Kg5 {[%clk 0:00:06]}  Rc7 {[%clk 0:00:01]} 61. Kh6 {[%clk 0:00:06]}  Rc8 {[%clk 0:00:01]} 62. Re7 {[%clk 0:00:06]}  Rf8 {[%clk 0:00:02]} 63. Rg7+ {[%clk 0:00:06]}  Kh8 {[%clk 0:00:02]} 64. Rxh7+ {[%clk 0:00:07]}  Kg8 {[%clk 0:00:03]} 65. Rg7+ {[%clk 0:00:07]}  Kh8 {[%clk 0:00:04]} 66. Rxg6 {[%clk 0:00:08]}  Rf6 {[%clk 0:00:02]} 67. Rxf6 {[%clk 0:00:08]} 1-0

[Event "December 12 Late 2023"]
[Site "https://www.chess.com"]
[Date "2023.12.12"]
[Round "4"]
[White "Goltsev, Dmitry"]
[Black "Gasparyan, David"]
[Result "1-0"]
[Board "63"]
[TimeControl "180+1"]
[WhiteFideId "24176710"]
[BlackFideId "13311980"]
[WhiteElo "2663"]
[BlackElo "2503"]
[WhiteTeam "RUS"]
[BlackTeam "USA"]
[WhiteClock "0:00:27"]
[BlackClock "0:00:00"]

1. e4 {[%clk 0:02:58]}  c5 {[%clk 0:02:58]} 2. Nf3 {[%clk 0:02:59]}  e6 {[%clk 0:02:56]} 3. d4 {[%clk 0:02:59]}  cxd4 {[%clk 0:02:56]} 4. Nxd4 {[%clk 0:03:00]}  a6 {[%clk 0:02:57]} 5. Nc3 {[%clk 0:02:59]}  Qc7 {[%clk 0:02:56]} 6. Be2 {[%clk 0:03:00]}  Nf6 {[%clk 0:02:53]} 7. O-O {[%clk 0:03:00]}  Nc6 {[%clk 0:02:53]} 8. Be3 {[%clk 0:03:01]}  b5 {[%clk 0:02:48]} 9. a3 {[%clk 0:03:00]}  Nxd4 {[%clk 0:02:42]} 10. Bxd4 {[%clk 0:03:00]}  Bc5 {[%clk 0:02:42]} 11. Qd2 {[%clk 0:02:58]}  Bb7 {[%clk 0:02:39]} 12. Rad1 {[%clk 0:02:37]}  O-O {[%clk 0:02:33]} 13. Bxf6 {[%clk 0:02:36]}  gxf6 {[%clk 0:02:34]} 14. Qxd7 {[%clk 0:02:35]}  Qb6 {[%clk 0:02:25]} 15. b4 {[%clk 0:02:14]}  Be3 {[%clk 0:01:20]} 16. fxe3 {[%clk 0:02:06]}  Qxe3+ {[%clk 0:01:19]} 17. Kh1 {[%clk 0:02:06]}  Qxc3 {[%clk 0:01:06]} 18. Qxb7 {[%clk 0:02:05]}  Qxa3 {[%clk 0:01:05]} 19. Rxf6 {[%clk 0:01:57]}  Qe3 {[%clk 0:00:53]} 20. Bh5 {[%clk 0:01:42]}  Rad8 {[%clk 0:00:47]} 21. Rdf1 {[%clk 0:01:22]}  Qg5 {[%clk 0:00:41]} 22. Bxf7+ {[%clk 0:01:04]}  Kh8 {[%clk 0:00:41]} 23. Qe7 {[%clk 0:01:00]}  Qg7 {[%clk 0:00:06]} 24. R6f2 {[%clk 0:00:44]}  Rd4 {[%clk 0:00:04]} 25. Qxe6 {[%clk 0:00:43]}  Rxb4 {[%clk 0:00:03]} 26. Qxa6 {[%clk 0:00:33]}  Rb2 {[%clk 0:00:03]} 27. Qc6 {[%clk 0:00:31]}  b4 {[%clk 0:00:02]} 28. h3 {[%clk 0:00:27]}  b3 {[%clk 0:00:02]} 29. cxb3 {[%clk 0:00:26]}  Rxf2 {[%clk 0:00:00]} 30. Rxf2 {[%clk 0:00:27]} 1-0

[Event "December 12 Late 2023"]
[Site "https://www.chess.com"]
[Date "2023.12.12"]
[Round "4"]
[White "Solon, Nathan"]
[Black "Cervantes Landeiro, Thalia"]
[Result "1-0"]
[Board "64"]
[TimeControl "180+1"]
[WhiteFideId "2017229"]
[BlackFideId "3520498"]
[WhiteElo "2656"]
[BlackElo "2493"]
[WhiteTeam "USA"]
[BlackTeam "USA"]
[WhiteClock "0:00:28"]
[BlackClock "0:00:00"]

1. d4 {[%clk 0:03:00]}  Nf6 {[%clk 0:03:00]} 2. Bf4 {[%clk 0:03:00]}  g6 {[%clk 0:03:00]} 3. Nf3 {[%clk 0:02:58]}  d5 {[%clk 0:03:00]} 4. e3 {[%clk 0:02:57]}  Bg7 {[%clk 0:03:01]} 5. h3 {[%clk 0:02:56]}  O-O {[%clk 0:03:00]} 6. Be2 {[%clk 0:02:55]}  c5 {[%clk 0:03:01]} 7. c3 {[%clk 0:02:55]}  b6 {[%clk 0:03:01]} 8. Nbd2 {[%clk 0:02:55]}  Bb7 {[%clk 0:03:02]} 9. O-O {[%clk 0:02:55]}  Nc6 {[%clk 0:03:03]} 10. a3 {[%clk 0:02:41]}  Nd7 {[%clk 0:02:49]} 11. Qa4 {[%clk 0:02:35]}  e5 {[%clk 0:02:45]} 12. dxe5 {[%clk 0:02:36]}  Ndxe5 {[%clk 0:02:44]} 13. Rad1 {[%clk 0:02:35]}  Qe7 {[%clk 0:02:35]} 14. Nxe5 {[%clk 0:02:33]}  Nxe5 {[%clk 0:02:34]} 15. Nf3 {[%clk 0:02:33]}  Rfd8 {[%clk 0:02:31]} 16. Rd2 {[%clk 0:02:26]}  Bc6 {[%clk 0:02:02]} 17. Qd1 {[%clk 0:02:20]}  Nc4 {[%clk 0:01:56]} 18. Rc2 {[%clk 0:02:11]}  h6 {[%clk 0:01:49]} 19. Qc1 {[%clk 0:02:08]}  g5 {[%clk 0:01:40]} 20. Bg3 {[%clk 0:02:06]}  f5 {[%clk 0:01:26]} 21. Bd3 {[%clk 0:01:43]}  Rf8 {[%clk 0:01:19]} 22. b3 {[%clk 0:01:38]}  Ne5 {[%clk 0:01:19]} 23. Nxe5 {[%clk 0:01:36]}  Bxe5 {[%clk 0:01:19]} 24. Bxe5 {[%clk 0:01:36]}  Qxe5 {[%clk 0:01:20]} 25. Rd1 {[%clk 0:01:29]}  f4 {[%clk 0:01:14]} 26. exf4 {[%clk 0:01:30]}  gxf4 {[%clk 0:01:13]} 27. Be2 {[%clk 0:01:16]}  d4 {[%clk 0:00:52]} 28. cxd4 {[%clk 0:01:13]}  Qg5 {[%clk 0:00:52]} 29. d5 {[%clk 0:01:11]}  Bd7 {[%clk 0:00:47]} 30. Kh2 {[%clk 0:01:06]}  Rae8 {[%clk 0:00:27]} 31. Bf3 {[%clk 0:01:06]}  Qh4 {[%clk 0:00:19]} 32. Re1 {[%clk 0:00:58]}  Kh8 {[%clk 0:00:18]} 33. Rce2 {[%clk 0:00:52]}  Rxe2 {[%clk 0:00:11]} 34. Rxe2 {[%clk 0:00:53]}  Qf6 {[%clk 0:00:07]} 35. Qe1 {[%clk 0:00:47]}  b5 {[%clk 0:00:06]} 36. Re7 {[%clk 0:00:47]}  Bf5 {[%clk 0:00:06]} 37. Rxa7 {[%clk 0:00:43]}  c4 {[%clk 0:00:06]} 38. bxc4 {[%clk 0:00:42]}  bxc4 {[%clk 0:00:07]} 39. Rc7 {[%clk 0:00:34]}  Bd3 {[%clk 0:00:06]} 40. a4 {[%clk 0:00:31]}  Qd6 {[%clk 0:00:00]} 41. Rc6 {[%clk 0:00:28]} 1-0

[Event "December 12 Late 2023"]
[Site "https://www.chess.com"]
[Date "2023.12.12"]
[Round "4"]
[White "Bazilius, Augustinas"]
[Black "Jaracz, Pawel"]
[Result "1-0"]
[Board "67"]
[TimeControl "180+1"]
[WhiteFideId "12832251"]
[BlackFideId "1102222"]
[WhiteElo "2472"]
[BlackElo "2641"]
[WhiteTeam "LTU"]
[BlackTeam "POL"]
[WhiteClock "0:00:12"]
[BlackClock "0:00:14"]

1. d4 {[%clk 0:02:54]}  d5 {[%clk 0:02:59]} 2. c4 {[%clk 0:02:55]}  c6 {[%clk 0:02:59]} 3. Nf3 {[%clk 0:02:55]}  Nf6 {[%clk 0:02:59]} 4. g3 {[%clk 0:02:55]}  dxc4 {[%clk 0:02:58]} 5. Bg2 {[%clk 0:02:55]}  b5 {[%clk 0:02:58]} 6. Ne5 {[%clk 0:02:55]}  Bb7 {[%clk 0:02:59]} 7. O-O {[%clk 0:02:51]}  e6 {[%clk 0:02:56]} 8. b3 {[%clk 0:02:51]}  cxb3 {[%clk 0:02:56]} 9. axb3 {[%clk 0:02:51]}  Qb6 {[%clk 0:02:48]} 10. Nc3 {[%clk 0:02:46]}  Nbd7 {[%clk 0:02:42]} 11. Be3 {[%clk 0:02:31]}  Nd5 {[%clk 0:02:21]} 12. Nxd5 {[%clk 0:02:10]}  cxd5 {[%clk 0:02:19]} 13. Nxd7 {[%clk 0:02:10]}  Kxd7 {[%clk 0:02:18]} 14. Qd3 {[%clk 0:01:52]}  Be7 {[%clk 0:02:12]} 15. Bd2 {[%clk 0:01:44]}  a5 {[%clk 0:02:11]} 16. e4 {[%clk 0:01:18]}  dxe4 {[%clk 0:02:08]} 17. Bxe4 {[%clk 0:01:19]}  Bxe4 {[%clk 0:02:08]} 18. Qxe4 {[%clk 0:01:20]}  Qc6 {[%clk 0:02:05]} 19. Qf4 {[%clk 0:01:18]}  a4 {[%clk 0:01:57]} 20. bxa4 {[%clk 0:01:11]}  Rxa4 {[%clk 0:01:57]} 21. Qxf7 {[%clk 0:01:06]}  Rha8 {[%clk 0:01:44]} 22. Rxa4 {[%clk 0:01:03]}  bxa4 {[%clk 0:01:44]} 23. Bg5 {[%clk 0:01:01]}  Qd6 {[%clk 0:01:42]} 24. Rb1 {[%clk 0:00:55]}  Ra7 {[%clk 0:01:41]} 25. d5 {[%clk 0:00:43]}  exd5 {[%clk 0:01:20]} 26. Re1 {[%clk 0:00:42]}  Kc8 {[%clk 0:01:02]} 27. Bxe7 {[%clk 0:00:38]}  Qd7 {[%clk 0:00:59]} 28. Qf8+ {[%clk 0:00:38]}  Kb7 {[%clk 0:01:00]} 29. Rb1+ {[%clk 0:00:39]}  Ka6 {[%clk 0:00:53]} 30. Qf3 {[%clk 0:00:36]}  Rb7 {[%clk 0:00:51]} 31. Qd3+ {[%clk 0:00:32]}  Ka7 {[%clk 0:00:47]} 32. Bc5+ {[%clk 0:00:32]}  Kb8 {[%clk 0:00:46]} 33. Re1 {[%clk 0:00:25]}  Qc6 {[%clk 0:00:39]} 34. Bd4 {[%clk 0:00:22]}  Qc4 {[%clk 0:00:30]} 35. Qe3 {[%clk 0:00:21]}  Qc6 {[%clk 0:00:19]} 36. Qf4+ {[%clk 0:00:17]}  Ka8 {[%clk 0:00:15]} 37. Qf8+ {[%clk 0:00:12]}  Rb8 {[%clk 0:00:15]} 38. Qxg7 {[%clk 0:00:13]}  a3 {[%clk 0:00:14]} 39. Qa7# {[%clk 0:00:12]} 1-0

[Event "December 12 Late 2023"]
[Site "https://www.chess.com"]
[Date "2023.12.12"]
[Round "4"]
[White "Dobrikov, Marco"]
[Black "Dubessay, Bastien"]
[Result "0-1"]
[Board "69"]
[TimeControl "180+1"]
[WhiteFideId "12950378"]
[BlackFideId "650048"]
[WhiteElo "2636"]
[BlackElo "2426"]
[WhiteTeam "GER"]
[BlackTeam "FRA"]
[WhiteClock "0:00:43"]
[BlackClock "0:00:31"]

1. Nf3 {[%clk 0:02:57]}  Nf6 {[%clk 0:02:55]} 2. d3 {[%clk 0:02:55]}  d5 {[%clk 0:02:47]} 3. Nbd2 {[%clk 0:02:55]}  c5 {[%clk 0:02:46]} 4. e4 {[%clk 0:02:55]}  e6 {[%clk 0:02:40]} 5. g3 {[%clk 0:02:53]}  Nc6 {[%clk 0:02:40]} 6. Bg2 {[%clk 0:02:54]}  Be7 {[%clk 0:02:35]} 7. O-O {[%clk 0:02:54]}  O-O {[%clk 0:02:36]} 8. c3 {[%clk 0:02:54]}  b5 {[%clk 0:02:16]} 9. Re1 {[%clk 0:02:49]}  Rb8 {[%clk 0:02:12]} 10. exd5 {[%clk 0:02:40]}  Nxd5 {[%clk 0:02:10]} 11. Nb3 {[%clk 0:02:34]}  a5 {[%clk 0:01:51]} 12. c4 {[%clk 0:02:30]}  bxc4 {[%clk 0:01:42]} 13. dxc4 {[%clk 0:02:29]}  Nb6 {[%clk 0:01:41]} 14. Bf4 {[%clk 0:02:28]}  Ra8 {[%clk 0:01:31]} 15. Qxd8 {[%clk 0:02:16]}  Rxd8 {[%clk 0:01:30]} 16. Bc7 {[%clk 0:02:16]}  Nxc4 {[%clk 0:01:27]} 17. Bxd8 {[%clk 0:02:16]}  Bxd8 {[%clk 0:01:26]} 18. Nxc5 {[%clk 0:01:38]}  Rb8 {[%clk 0:01:25]} 19. b3 {[%clk 0:01:36]}  Na3 {[%clk 0:01:25]} 20. Rad1 {[%clk 0:01:36]}  Bf6 {[%clk 0:01:23]} 21. Nd2 {[%clk 0:01:28]}  Nd4 {[%clk 0:01:22]} 22. Nde4 {[%clk 0:01:26]}  Nac2 {[%clk 0:01:18]} 23. Nxf6+ {[%clk 0:01:23]}  gxf6 {[%clk 0:01:19]} 24. Re4 {[%clk 0:01:23]}  e5 {[%clk 0:01:19]} 25. g4 {[%clk 0:01:15]}  Rb5 {[%clk 0:01:17]} 26. Na4 {[%clk 0:01:14]}  Bb7 {[%clk 0:01:11]} 27. Rc1 {[%clk 0:01:03]}  Bxe4 {[%clk 0:01:08]} 28. Nc3 {[%clk 0:01:01]}  Bxg2 {[%clk 0:01:06]} 29. Nxb5 {[%clk 0:01:01]}  Ne2+ {[%clk 0:01:02]} 30. Kxg2 {[%clk 0:01:01]}  Nxc1 {[%clk 0:01:03]} 31. Nd6 {[%clk 0:01:01]}  Nxa2 {[%clk 0:01:01]} 32. Nc4 {[%clk 0:01:01]}  Nd4 {[%clk 0:00:54]} 33. Nxa5 {[%clk 0:01:01]}  Nb4 {[%clk 0:00:55]} 34. Nc4 {[%clk 0:01:00]}  Kg7 {[%clk 0:00:55]} 35. h4 {[%clk 0:00:56]}  Nxb3 {[%clk 0:00:54]} 36. g5 {[%clk 0:00:56]}  Nd4 {[%clk 0:00:53]} 37. Kg3 {[%clk 0:00:55]}  Nbc6 {[%clk 0:00:53]} 38. Kg4 {[%clk 0:00:55]}  fxg5 {[%clk 0:00:53]} 39. hxg5 {[%clk 0:00:54]}  Kg6 {[%clk 0:00:52]} 40. Nd6 {[%clk 0:00:52]}  Ne6 {[%clk 0:00:50]} 41. Ne4 {[%clk 0:00:51]}  Ncd4 {[%clk 0:00:49]} 42. f3 {[%clk 0:00:49]}  Ne2 {[%clk 0:00:49]} 43. Kh4 {[%clk 0:00:49]}  N2f4 {[%clk 0:00:48]} 44. Kg4 {[%clk 0:00:50]}  Ng2 {[%clk 0:00:49]} 45. Kg3 {[%clk 0:00:50]}  Ne3 {[%clk 0:00:49]} 46. Kh4 {[%clk 0:00:50]}  Nd1 {[%clk 0:00:37]} 47. Kg3 {[%clk 0:00:50]}  Nb2 {[%clk 0:00:38]} 48. Kg4 {[%clk 0:00:51]}  Na4 {[%clk 0:00:38]} 49. Kg3 {[%clk 0:00:51]}  Nxg5 {[%clk 0:00:38]} 50. Nd6 {[%clk 0:00:50]}  f5 {[%clk 0:00:38]} 51. Nc4 {[%clk 0:00:49]}  Kf6 {[%clk 0:00:37]} 52. f4 {[%clk 0:00:49]}  exf4+ {[%clk 0:00:36]} 53. Kxf4 {[%clk 0:00:50]}  Ne6+ {[%clk 0:00:37]} 54. Kf3 {[%clk 0:00:50]}  Nac5 {[%clk 0:00:38]} 55. Nd6 {[%clk 0:00:50]}  Ne4 {[%clk 0:00:38]} 56. Nc4 {[%clk 0:00:48]}  N4g5+ {[%clk 0:00:35]} 57. Kg3 {[%clk 0:00:48]}  h5 {[%clk 0:00:36]} 58. Kh4 {[%clk 0:00:48]}  Ng7 {[%clk 0:00:34]} 59. Ne3 {[%clk 0:00:47]}  Nf3+ {[%clk 0:00:33]} 60. Kg3 {[%clk 0:00:47]}  Ne5 {[%clk 0:00:31]} 61. Nd5+ {[%clk 0:00:44]}  Kg5 {[%clk 0:00:30]} 62. Nc3 {[%clk 0:00:43]}  h4+ {[%clk 0:00:29]} 63. Kh3 {[%clk 0:00:44]}  Ne6 {[%clk 0:00:29]} 64. Nd1 {[%clk 0:00:41]}  Nf4+ {[%clk 0:00:30]} 65. Kh2 {[%clk 0:00:42]}  Ng4+ {[%clk 0:00:29]} 66. Kh1 {[%clk 0:00:42]}  h3 {[%clk 0:00:29]} 67. Nc3 {[%clk 0:00:40]}  Nd3 {[%clk 0:00:28]} 68. Nd1 {[%clk 0:00:39]}  Ndf2+ {[%clk 0:00:27]} 69. Nxf2 {[%clk 0:00:36]}  Nxf2+ {[%clk 0:00:28]} 70. Kg1 {[%clk 0:00:37]}  Ng4 {[%clk 0:00:28]} 71. Kh1 {[%clk 0:00:38]}  Kh4 {[%clk 0:00:29]} 72. Kg1 {[%clk 0:00:39]}  Kg3 {[%clk 0:00:29]} 73. Kh1 {[%clk 0:00:40]}  Nf2+ {[%clk 0:00:29]} 74. Kg1 {[%clk 0:00:41]}  h2+ {[%clk 0:00:29]} 75. Kf1 {[%clk 0:00:42]}  h1=Q+ {[%clk 0:00:30]} 76. Ke2 {[%clk 0:00:43]}  Qd1+ {[%clk 0:00:30]} 77. Ke3 {[%clk 0:00:43]}  Qd3# {[%clk 0:00:31]} 0-1